Cogmind - Beta 14 @@@ ROGUE MODE // 2024.08.18 @ 13:25:56 Player: TheProctologist Result: Destroyed by YI-UF0 with YI-UF0's Doublenader Performance ------------- Evolutions (0) 0 Regions Visited (2) 400 Robots Destroyed (29) 145 Value Destroyed (358) 358 Prototype IDs (0) 0 Alien Tech Used (0) 0 Bonus (0) 0 TOTAL SCORE: 903 Bonus ------- None Cogmind --------- Core Integrity 0/250 Matter 300/300 Energy 100/100 System Corruption 2% Temperature Cool (1) Movement Walking (260) Ox2 Location -10/Mines Parts ------- > --- POWER (1) -------- (None) > --- PROPULSION (2) --- Aluminum Leg > --- UTILITY (2) ------ Large Storage Unit > --- WEAPON (2) ------- Beam Rifle > --- INVENTORY (15) --- Light Ion Engine Light Ion Engine Aluminum Leg Structural Scanner Sensor Array Sensor Array Improved Terrain Scanner Light Assault Rifle Grenade Launcher Datajack Mining Laser Peak State ------------ > --- POWER ------------ Ion Engine > --- PROPULSION ------- Aluminum Leg Aluminum Leg > --- UTILITY ---------- Cooling System Small Storage Unit > --- WEAPON ----------- Beam Rifle Beam Rifle > --- INVENTORY -------- Ion Engine Light Ion Engine Improved Terrain Scanner Light Assault Rifle Light Assault Rifle Light Assault Rifle Grenade Launcher Mining Laser [Rating: 11] Favorites ----------- Power Ion Engine Engine Ion Engine Propulsion Aluminum Leg Leg Aluminum Leg Utility Small Storage Unit Device Cooling System Storage Small Storage Unit Weapon Beam Rifle Energy Gun Beam Rifle Ballistic Gun Light Assault Rifle Launcher Grenade Launcher Build | -11 -10 -10 ------- Run | Yrd Mat Min Slots Evolved . | . . . Power . | . . . Propulsion . | . . . Utility . | . . . Weapon . | . . . Parts Attached 16 | 7 8 1 Power 2 | 1 1 . Engine 2 | 1 1 . Core . | . . . Reactor . | . . . Propulsion 2 | 2 . . Treads . | . . . Leg 2 | 2 . . Wheel . | . . . Hover . | . . . Flight . | . . . Utility 7 | 2 4 1 Device 4 | 1 2 1 Storage 3 | 1 2 . Processor . | . . . Hackware . | . . . Protection . | . . . Artifact . | . . . Weapon 5 | 2 3 . Energy Gun 2 | . 2 . Energy Cannon . | . . . Ballistic Gun 2 | 2 . . Ballistic Cannon . | . . . Launcher 1 | . 1 . Special Weapon . | . . . Impact Weapon . | . . . Slashing Weapon . | . . . Piercing Weapon . | . . . Special Melee Weapon . | . . . Unidentified Prototypes . | . . . Parts Lost 5 | . 1 4 Power 2 | . 1 1 Propulsion 1 | . . 1 Utility 1 | . . 1 Weapon 1 | . . 1 Highest Loss Streak 4 | . 1 4 To Critical Strikes . | . . . Average Slot Usage (%) 100 | . 100 100 Engine 14 | . 14 14 Leg 28 | . 28 28 Device 14 | . 14 14 Storage 14 | . 14 14 Energy Gun 23 | . 20 28 Ballistic Gun 3 | . 5 . Peak Build Rating 11 | 9 11 11 Average Rating 9 | 6 10 10 On Entrance 6 | . 9 10 Naked Turns . | . . . Heaviest Build 33 | 13 32 33 Greatest Support 20 | 20 20 20 Greatest Overweight (x) 3 | 3 1 2 Average Overweight (x) . | . . 1 Largest Inventory Capacity 15 | 8 15 15 Average Capacity 10 | 7 8 15 Most Carried 11 | 4 10 11 Average Carried 8 | 2 7 10 Final Capacity 15 | 8 15 15 Final Carried 11 | 4 10 11 Class Distribution -------------------- 100% | Mutant Dominant Class ---------------- Mutant | -10/Materials Mutant | -10/Mines Resources | -11 -10 -10 ----------- Run | Yrd Mat Min Matter Collected 443 | 322 110 11 Remotely . | . . . Salvage Created 685 | 237 404 44 Parts 64 | 17 38 9 Haulers Intercepted 1 | . 1 . Recyclers Shooed . | . . . Parts Field Recycled . | . . . Retrieved Matter . | . . . Parts Self-Destructed . | . . . Prevented . | . . . Kills | -11 -10 -10 ------- Run | Yrd Mat Min Combat Hostiles Destroyed 13 | . 10 3 Guns 11 | . 8 3 AOE 2 | . 2 . Classes Destroyed 9 | 3 6 . Worker 3 | 2 1 . Builder 3 | . 3 . Tunneler 5 | 5 . . Hauler 1 | . 1 . Recycler 1 | 1 . . Operator 1 | . 1 . Watcher 2 | . 2 . Swarmer 9 | . 6 3 Grunt 4 | . 4 . Best Kill Streak 5 | 3 5 2 Combat Bots Only 4 | . 4 2 Max Kills in Single Turn 2 | 1 2 1 Gunslinging . | . . . Exploded 2 | . 2 . Melee . | . . . Uniques/NPCs Destroyed . | . . . Combat | -11 -10 -10 -------- Run | Yrd Mat Min Hostile Shots Fired 85 | . 50 35 Missed 21 | . 13 8 Damage Taken 857 | . 358 499 Core 252 | . 97 155 Absorbed by Shields . | . . . Core Remaining (%) 100 | 100 . . Volleys Fired 65 | 26 27 12 Largest 2 | 2 2 2 Hottest 112 | 40 112 112 Shots Fired 130 | 52 54 24 Gun 126 | 52 50 24 Cannon . | . . . Launcher 4 | . 4 . Special . | . . . Kinetic 56 | 52 4 . Thermal 70 | . 46 24 Explosive 4 | . 4 . Electromagnetic . | . . . Robot Hit Streak 13 | 13 7 4 Robot Miss Streak 13 | 3 2 13 Penetration Max . | . . . Secondary Targets 1 | . 1 . Max Gunslinging Chain 1 | . 1 . Shots Hit Robots 74 | 36 33 5 Core Hits 42 | 15 22 5 Critical Kills 1 | 1 . . Critical Parts Destroyed . | . . . Critical Strikes 9 | 1 8 . Burn 8 | . 8 . Destroy 1 | 1 . . Melee Attacks . | . . . Impact . | . . . Slashing . | . . . Piercing . | . . . Sneak Attacks . | . . . Combat Hostiles . | . . . Follow-up Attacks . | . . . Damage Inflicted 1054 | 281 697 76 Guns 827 | 281 475 71 Cannons . | . . . Explosions 221 | . 221 . Melee . | . . . Ramming 6 | . 1 5 Kinetic 307 | 281 26 . Thermal 520 | . 449 71 Explosive 221 | . 221 . Electromagnetic . | . . . Impact . | . . . Slashing . | . . . Piercing . | . . . Highest Corruption 2 | . 2 2 Average Corruption 2 | . 2 2 Corruption Purged . | . . . Corruption Blocked . | . . . Effects 10 | . 6 4 Message Errors 2 | . 1 1 Matter Fused 2 | . 1 1 Heat Flow Errors 1 | . . 1 Energy Discharges 2 | . 2 . Data Loss (minor) 2 | . 2 . Alerts 1 | . . 1 Overload Shots . | . . . Overflow Damage 4 | . 4 . Projectiles . | . . . Explosions 4 | . 4 . Melee . | . . . Knockbacks 1 | . . 1 Impact 1 | . . 1 Kinetic . | . . . Secondary . | . . . Self-Inflicted Damage 19 | . 19 . Shots 2 | . 2 . Rammed . | . . . Targets Rammed 3 | . 1 2 Kicked 3 | . 1 2 Crushed . | . . . Highest Temperature 306 | . 153 306 Average Temperature 86 | . 38 123 Received Heat Transfer 78 | . 78 . Siege Activations . | . . . Robots Corrupted . | . . . Combat Hostiles . | . . . Parts Fried . | . . . Impact Corruptions . | . . . Robots Melted 1 | . 1 . Combat Hostiles . | . . . Parts Melted 2 | . 2 . Heat Transferred 1924 | . 1739 185 Parts Sabotaged . | . . . Parts Stolen . | . . . Parts Stripped . | . . . Power Chain Reactions . | . . . Alert | -11 -10 -10 ------- Run | Yrd Mat Min Peak Influence 334 | 40 334 177 Initial 92 | . 26 92 Average 132 | 18 173 130 Maximum Alert Level 1 | . 1 . Low Security (%) 76 | 100 50 100 Level 1 23 | . 49 . Level 2 . | . . . Level 3 . | . . . Level 4 . | . . . Level 5 . | . . . High Security . | . . . Max Security . | . . . Squads Dispatched 1 | . 1 . Investigation 1 | . 1 . Extermination . | . . . Reinforcement . | . . . Assault . | . . . Garrison . | . . . Intercept . | . . . Searches Triggered . | . . . Construction Impeded . | . . . Haulers Reinforced . | . . . Active Scanning Responses . | . . . Cargo Convoy Interrupts . | . . . Stealth | -11 -10 -10 --------- Run | Yrd Mat Min Distress Signals . | . . . Communications Jammed . | . . . Distress Signals . | . . . Times Spotted 20 | . 15 5 Peak Tracking Total 3 | . 3 3 Tactical Retreats 1 | . . 1 Traps | -11 -10 -10 ------- Run | Yrd Mat Min Traps Triggered 1 | . 1 . Indirectly . | . . . Trap Hack Attempts . | . . . Triggered . | . . . Disarmed . | . . . Reprogrammed . | . . . Reused . | . . . Traps Extracted . | . . . Installed . | . . . Triggered . | . . . Machines | -11 -10 -10 ---------- Run | Yrd Mat Min Machines Disabled 1 | . 1 . Max in Single Turn 1 | . 1 . Machines Repaired . | . . . Machines Dismantled . | . . . Machines Sabotaged . | . . . Overloaded Fab Kills . | . . . Hacking | -11 -10 -10 --------- Run | Yrd Mat Min Machines Accessed 4 | . 4 . Terminals 3 | . 3 . Fabricators . | . . . Repair Stations . | . . . Recycling Units 1 | . 1 . Scanalyzers . | . . . Garrison Access . | . . . Total Hacks 10 | . 10 . Successful 3 | . 3 . Failed 7 | . 7 . Catastrophic 3 | . 3 . Database Lockouts . | . . . Manual 5 | . 5 . Terminals 9 | . 9 . Fabricators . | . . . Repair Stations . | . . . Recycling Units 1 | . 1 . Scanalyzers . | . . . Garrison Access . | . . . Terminal Hacks 2 | . 2 . Branch Access Points 1 | . 1 . Zone Layout 1 | . 1 . Fabricator Hacks . | . . . Repair Station Hacks . | . . . Recycling Unit Hacks . | . . . Scanalyzer . | . . . Garrison Access Hacks . | . . . Unauthorized Hacks 1 | . 1 . Terminals . | . . . Fabricators . | . . . Repair Stations . | . . . Recycling Units 1 | . 1 . Tunnel 1 | . 1 . Scanalyzers . | . . . Garrison Access . | . . . Data Cores Recovered 1 | . 1 . Used . | . . . Hacking Detections 3 | . 3 . Full Trace Events 1 | . 1 . Feedback Events . | . . . Feedback Blocked . | . . . Robot Schematics Acquired . | . . . Robots Built . | . . . Authchips . | . . . Time . | . . . Total Robot Build Rating . | . . . Part Schematics Acquired . | . . . Parts Built . | . . . Authchips . | . . . Time . | . . . Total Part Build Rating . | . . . Parts Repaired . | . . . Time . | . . . Parts Recycled . | . . . Recycled Matter . | . . . Retrieved Matter . | . . . Retrieved Components . | . . . Parts Scanalyzed . | . . . Part Schematics Acquired . | . . . Parts Damaged . | . . . Bothacking | -11 -10 -10 ------------ Run | Yrd Mat Min Used RIF Installer . | . . . Robots Hacked . | . . . Non-combat . | . . . Combat . | . . . Robot Hacks Applied . | . . . Relay Couplers Released . | . . . Fabnet Peak Effective % . | . . . Robots Rewired . | . . . Allies Hacked . | . . . Hacks Repelled . | . . . Allies | -11 -10 -10 -------- Run | Yrd Mat Min Total Allies . | . . . Largest Group . | . . . Highest-Rated Group . | . . . Highest-Rated Ally . | . . . Total Orders . | . . . Ally Attacks . | . . . Total Damage . | . . . Kills . | . . . Allies Corrupted . | . . . Allies Melted . | . . . Intel | -11 -10 -10 ------- Run | Yrd Mat Min Robot Analysis Total . | . . . Derelict Logs Recovered . | . . . Drone Launches . | . . . Drone Recoveries . | . . . Exploration | -11 -10 -10 ------------- Run | Yrd Mat Min Turns Passed 1396 | 230 677 489 Spaces Moved 733 | 119 388 226 Core 9 | 9 . . Treads . | . . . Legs 724 | 110 388 226 Wheels . | . . . Hover . | . . . Flight . | . . . Fastest Speed 50 | 50 120 190 Average Speed 152 | 124 139 190 Slowest Speed 260 | 200 190 260 Overloaded Moves . | . . . Propulsion Burnouts . | . . . Robots Hopped . | . . . Cave-ins Triggered . | . . . Exploration Rate (%) 38 | 6 60 49 Regions Visited 2 Branch Regions 1 Pre-discovered Areas 1 | . 1 . Known Exits Taken 1 | . 1 . Unknown Exits Taken 1 | 1 . . Scrap Searched . | . . . Spaces Dug . | . . . Terrain Destroyed 25 | . 25 . Melee . | . . . Projectile . | . . . AOE 25 | . 25 . Terrain Rammed . | . . . Walls Destroyed . | . . . Machines Disabled . | . . . Actions | -11 -10 -10 --------- Run | Yrd Mat Min Total 886 | 156 469 261 Wait 50 | . 31 19 Move 731 | 118 387 226 Hop . | . . . Pick Up 16 | 5 10 1 Fast Attach 6 | 6 . . Attach 2 | 1 1 . Detach . | . . . Swap 8 | . 7 1 Drop 5 | . 5 . Fire 65 | 26 27 12 Melee . | . . . Ram . | . . . Kick 3 | . 1 2 Crush . | . . . Escape Stasis . | . . . Rewire . | . . . Trap . | . . . Miscellaneous . | . . . Route ------- -11/Scrapyard -10/Materials (discovered 2 exits: [*Mat] / *Min) -10/Mines (discovered 3 exits: [*Mat] / [*Exi] / [Sub]) History --------- Turn | Location | Event 20 | -11/Scrapyard | Discovered new exit (range 15) 231 | -11/Scrapyard | Entered Materials 308 | -10/Materials | Build established: Mutant 357 | -10/Materials | Discovered new exit (range 10) 432 | -10/Materials | Discovered new exit (range 16) 452 | -10/Materials | Identified exit to Mines 908 | -10/Materials | Entered Mines 987 | -10/Mines | Discovered new exit (range 7) 1087 | -10/Mines | Discovered new exit (range 11) 1155 | -10/Mines | Core integrity fell below 50% 1285 | -10/Mines | Deemed a non-threat by the Exiles lab entrance 1287 | -10/Mines | Discovered new exit (range 5) 1396 | -10/Mines | Core integrity fell below 20% 1397 | -10/Mines | Destroyed by YI-UF0 with YI-UF0's Doublenader Last Messages --------------- 00987_ EXIT=FOUND 01011_ K-01 Serf collects debris. 01087_ EXIT=FOUND 01105_ J>>XMGTVR&0GR2SQOC8JS THARIIUEWI 01172_ System corrupted: Matter fused (-7). 01172_ S-10 Pest destroyed. 01179_ R-06 Scavenger collects Lgt. Assault Rifle. 01240_ Kicked K-01 Serf. 01240_ K-01 Serf knocked back. 01285_ "No threat detected, you may enter." 01287_ EXIT=FOUND 01345_ System corrupted: Heat flow error (+155). 01387_ YI-UF0 mumbles something. 01391_ Beam Rifle destroyed. 01391_ Cooling System destroyed. 01391_ YI-UF0: "WHOMP!" 01391_ T-07 Excavator destroyed. 01395_ Aluminum Leg destroyed. 01397_ Ion Engine destroyed. Map ----- +----------------------------------------------------+ | ??????????########### ###### ????????????????????? | | ??????????########### ##?????????????????????????? | | ??????????## #### ##?????????????????????????? | | ???????<#### """ #### ####???????###?????????????? | | ??????? #### """ ####%#####?????? ##?????????????? | | ???????## """ % ####????? ##?????????????? | | ???????### ####?? ###????????????? | | ????????## # ### #### ####???????????? | | ????????#### ### ## ###???????????? | | ????????#### ### ##???????????? | | ??????????########### ##???????????? | | ??????????########### ###???????????? | | ???????????????????## ## #####???????????? | | ??????????????????## g #### ######????????????? | | ?????????????????### #### ##############??????? | | ????????????????#### #### ####??# #??????? | | ?????############## ### ####### #??????? | | ?????############# ## """ #??????? | | ?????## ########## """ #??????? | | ?????## ###??????# """ #??????? | | ?????## ####### ##?????# #??????? | | ?????## ######## ##????# #??????? | | ?????## ###??##### ######## ###??????? | | ?????## ####??#####t ####### ##???????? | | ?###### ###????## #######??? | | ####### ###????# @ #??? | | ### #####??# ########## #??? | | ## #####?# ########### #??? | | ## ###?# ### ####???????# #??? | | ## ##?# ##########????????# ###? | | ### ##### # ###?#######????????## ## | | ##### ##### ####?????????????????# # | | ?###### ##### ########?????####???## # | | ???##### ##### #######???## ##?## | | ?????### ###### #####?# ### | | ??????### ###### ###### | | ??????### ###### ## | | ??????## #### #### | | ??????## ## ###### #??## | | ??????## ## ####### #??# | | ??????### < ########???# #??? | | ??????###### ########????# ##??? | | ???????#################?????????## ######???? | | ??????????#############???????????#######????????? | | ?????????????????????????????????????????????????? | | | | | | | | | | | +----------------------------------------------------+ Best States ------------- Heat Dissipation 47 Energy Generation 10 Energy Capacity 250 Matter Stores 300 Matter Capacity 300 Sight Range 16 Terrain Scan Range 16 Terrain Scan Density 10 Evasion (%) 55 Item Schematics ----------------- None Robot Schematics ------------------ None Fabricated ------------ Nothing Alien Tech Used ----------------- None Achievements -------------- None Challenges ------------ None Game ------ Seed GrenadeAssemblyInitializer Manual? 0 Play Time 00:16:29 Cumulative 33.1 hours Start 2024.08.18 @ 13:11:47 End 2024.08.18 @ 13:25:56 Sessions 1 Manual Loads 0 Difficulty Rogue Special Mode None Game No. 46 Rogue 46 Adventurer 0 Explorer 0 Win Type - Total 0 Types 0/0/0/0/0/0/0/0/0 Lore% 12 Gallery% 21 Achievement% 20 Wizard Run 0 Options --------- Layout 1 ASCII 0 Keyboard 0 Movement Numpad Keybinds 0 Fullscreen 1 Font 32/SmallcapsGlow Map View 50x40 Zoom Use 0% Tactical HUD 1 Map Filters NONE Filters NONE Steam 1 RUN: 4e97401a-75e7-491c-ac5f-9ebad8de080f